bitfinex/quotes_SOLUSD_20240813
["timestamp","ask_amount","ask_price","bid_price","bid_amount"]
[1723532583918,20.0,146.69,146.59,45.50196]
[1723532584545,20.0,146.7,146.59,45.50196]
[1723532584744,6.8171,146.69,146.61,0.12549]
[1723532584920,6.8171,146.69,146.61,45.50196]
[1723532585552,6.8167,146.7,146.61,45.50196]
[1723532585846,6.8171,146.69,146.61,45.50196]
[1723532586922,6.8166,146.7,146.61,45.50196]
[1723532587151,6.8156,146.73,146.63,0.12549]
[1723532587331,6.8156,146.73,146.63,45.50196]
[1723532587852,6.8156,146.73,146.65,0.12549]
[1723532588143,6.8156,146.73,146.65,45.50196]
[1723532589248,6.8157,146.72,146.65,45.50196]
[1723532591031,6.8164,146.71,146.65,45.50196]
[1723532591223,39.15,146.7,146.64,15.2235]
[1723532591526,1.65626005,146.69,146.62,6.3668]
[1723532591745,6.8193,146.65,146.62,6.3668]
[1723532592345,8.47566005,146.64,146.62,6.3668]
[1723532592547,8.47566005,146.64,146.6,15.4507]
[1723532592548,6.8194,146.64,146.6,15.4507]
[1723532592752,6.8199,146.63,146.6,15.4507]
[1723532592927,45.969,146.65,146.6,15.4507]
[1723532593130,39.15,146.67,146.6,15.4507]
[1723532593834,6.8185,146.66,146.6,15.4507]
[1723532594033,6.8185,146.66,146.61,45.37647]
[1723532594439,45.968,146.67,146.61,45.37647]
[1723532594927,45.968,146.67,146.62,0.12549]
[1723532595655,6.819,146.65,146.61,45.37647]
[1723532596348,6.8185,146.66,146.61,45.37647]
[1723532597159,39.15,146.67,146.61,45.37647]
[1723532597532,20.0,146.69,146.62,0.12549]
[1723532597730,39.15,146.72,146.62,0.12549]
[1723532598435,6.8166,146.7,146.62,0.12549]
[1723532599940,39.15,146.72,146.64,0.12549]
[1723532600140,6.816,146.72,146.64,45.50196]
[1723532600349,6.8153,146.73,146.64,45.50196]
[1723532600643,6.8153,146.73,146.66,0.12549]
[1723532600859,6.8153,146.73,146.66,45.25098]
[1723532601159,6.8153,146.73,146.67,0.12549]
[1723532601356,6.8148,146.74,146.68,0.12549]
[1723532601555,6.8148,146.74,146.68,0.37647]
[1723532601734,6.8152,146.73,146.69,0.12549]
[1723532601934,6.8152,146.73,146.69,0.37647]
[1723532604240,6.8149,146.74,146.69,0.37647]
[1723532605163,39.15,146.76,146.7,0.12549]
[1723532605338,20.0,146.75,146.71,6.6178]
[1723532605534,12.2897426,146.78,146.72,0.12549]
[1723532605731,38.8945023,146.82,146.72,0.12549]
[1723532605732,6.8118,146.81,146.74,0.12549]
[1723532605971,6.8131,146.78,146.74,0.25098]
[1723532606168,6.8131,146.78,146.75,0.12549]
[1723532606459,6.8129,146.78,146.75,0.37647]
[1723532606656,6.8129,146.78,146.75,0.12549]
[1723532606840,8.46916005,146.78,146.75,0.12549]
[1723532607039,6.8129,146.78,146.74,45.25098]
[1723532607256,45.9624,146.79,146.74,45.25098]
[1723532607958,45.9624,146.79,146.74,0.12549]
[1723532607959,6.8142,146.76,146.74,0.12549]
[1723532608158,45.9642,146.76,146.71,6.6178]
[1723532608339,45.9642,146.76,146.72,45.37647]
[1723532608542,45.9633,146.78,146.73,0.12549]
[1723532608737,26.8135,146.77,146.73,0.12549]
[1723532609067,26.8135,146.77,146.72,45.37647]
[1723532610472,39.15,146.78,146.73,0.12549]
[1723532610765,39.15,146.82,146.73,0.12549]
[1723532610934,39.15,146.82,146.75,0.12549]
[1723532611131,39.15,146.82,146.75,45.50196]
[1723532611566,6.8119,146.8,146.75,45.50196]
[1723532611737,6.8115,146.81,146.75,45.50196]
[1723532611945,6.8126,146.79,146.75,45.37647]
[1723532612244,6.8142,146.76,146.71,22.0888]
[1723532612470,6.8134,146.77,146.72,45.12549]
[1723532612696,6.8156,146.73,146.68,6.0212]
[1723532613187,39.15,146.74,146.68,6.0212]
[1723532613690,38.1382,146.79,146.68,6.0212]
[1723532613895,6.8162,146.71,146.68,6.0212]
[1723532614692,40.80626005,146.75,146.68,6.0212]
[1723532614693,6.8166,146.7,146.68,6.0212]
[1723532615093,45.9654,146.73,146.68,6.0212]
[1723532615793,6.8148,146.74,146.68,6.0212]
[1723532615995,39.15,146.77,146.69,45.37647]
[1723532616180,20.0,146.76,146.7,0.12549]
[1723532616382,26.8138,146.76,146.7,0.12549]
[1723532616887,6.8143,146.75,146.7,0.12549]
[1723532618968,20.0,146.76,146.7,0.12549]
[1723532619564,6.8129,146.78,146.7,1.48838954]
[1723532619565,20.0,146.77,146.7,1.48838954]
[1723532619772,6.814,146.76,146.72,0.12549]
[1723532619970,6.814,146.76,146.72,0.25098]
[1723532620383,26.8134,146.77,146.72,0.25098]
[1723532620593,26.8134,146.77,146.73,0.12549]
[1723532620894,26.8134,146.77,146.73,0.25098]
[1723532621099,8.47006005,146.76,146.73,0.25098]
[1723532621279,6.8138,146.76,146.73,0.25098]
[1723532621476,6.8138,146.76,146.73,0.12549]
[1723532621693,6.8143,146.75,146.73,0.12549]
[1723532622680,6.8139,146.76,146.73,0.12549]
[1723532623091,20.0,146.77,146.73,0.12549]
[1723532623092,26.8134,146.77,146.73,45.12549]
[1723532623772,6.8138,146.76,146.73,45.12549]
[1723532624792,8.47006005,146.76,146.73,45.12549]
[1723532624984,6.8138,146.76,146.73,45.12549]
[1723532625898,6.8144,146.75,146.73,0.12549]
[1723532626094,1.65626005,146.74,146.68,21.2841]
[1723532626298,1.65626005,146.73,146.68,21.2841]
[1723532626500,6.8165,146.71,146.68,21.2841]
[1723532626802,6.8157,146.72,146.68,21.2841]
[1723532627719,6.8143,146.75,146.69,0.25098]
[1723532627886,26.8151,146.74,146.7,0.12549]
[1723532628198,59.15,146.78,146.7,0.12549]
[1723532628602,6.8139,146.76,146.7,1.48855441]
[1723532628810,20.0,146.75,146.7,1.48855441]
[1723532629378,20.0,146.75,146.71,0.25098]
[1723532629596,6.8139,146.76,146.72,0.12549]
[1723532630009,6.8134,146.77,146.72,0.25098]
[1723532630213,16.9817682,146.83,146.74,0.12549]
[1723532630504,6.8111,146.82,146.76,0.12549]
[1723532630706,6.8111,146.82,146.76,45.50196]
[1723532631211,6.8116,146.81,146.76,45.50196]
[1723532632406,6.8115,146.81,146.76,45.50196]
[1723532638002,0.8408682,146.83,146.76,45.50196]
[1723532638302,7.6515682,146.83,146.76,45.50196]
[1723532638499,20.0,146.82,146.76,45.50196]
[1723532638701,0.8408682,146.83,146.76,45.50196]
[1723532639004,0.8408682,146.83,146.78,0.12549]
[1723532639384,7.6514682,146.83,146.78,0.12549]
[1723532640388,7.6514682,146.83,146.78,1.48780019]
[1723532640597,7.6514682,146.83,146.79,0.37647]
[1723532640881,0.8408682,146.83,146.8,0.12549]
[1723532641212,0.8408682,146.83,146.8,1.48766268]
[1723532641428,0.8408682,146.83,146.81,0.12549]
[1723532641590,0.8408682,146.83,146.81,0.25098]
[1723532641786,0.8408682,146.83,146.82,0.12549]
[1723532642010,0.8408682,146.83,146.82,0.25098]
[1723532643302,6.8116,146.81,146.76,6.308]
[1723532643501,6.811,146.82,146.76,6.308]
[1723532643715,8.46776005,146.81,146.76,6.308]
[1723532644012,32.0808682,146.83,146.76,6.308]
[1723532644390,0.8408682,146.83,146.76,6.308]
[1723532644591,1.65626005,146.82,146.76,6.308]
[1723532644911,31.24,146.8,146.76,6.308]
[1723532645099,6.8124,146.79,146.76,6.308]
[1723532645299,6.8116,146.81,146.76,6.308]
[1723532645801,6.812,146.8,146.76,6.308]
[1723532645991,6.812,146.8,146.77,45.12549]
[1723532646393,6.8125,146.79,146.77,0.12549]
[1723532646618,40.71626005,146.82,146.65,39.06]
[1723532646619,6.8134,146.77,146.72,6.0539]
[1723532646823,6.8138,146.76,146.72,6.0539]
[1723532647115,6.813,146.78,146.72,6.0539]
[1723532647516,6.8135,146.77,146.72,6.0539]
[1723532648415,6.8134,146.77,146.72,6.0539]
[1723532648797,6.8119,146.81,146.73,45.37647]
[1723532649123,6.8119,146.81,146.74,0.25098]
[1723532649413,6.8119,146.81,146.76,0.12549]
[1723532649617,6.8119,146.8,146.76,0.25098]
[1723532649821,6.8119,146.8,146.77,0.12549]
[1723532650708,6.8116,146.81,146.77,0.12549]
[1723532650890,6.812,146.8,146.77,0.12549]
[1723532651095,6.8121,146.8,146.77,0.12549]
[1723532651295,8.46896005,146.79,146.76,0.12549]
[1723532651594,6.8127,146.79,146.76,0.12549]
[1723532651806,45.8712,146.82,146.76,0.25098]
[1723532652022,6.8112,146.82,146.77,0.12549]
[1723532653524,6.8115,146.81,146.77,0.12549]
[1723532654031,6.8111,146.82,146.77,0.25098]
[1723532654231,6.8111,146.82,146.78,0.25098]
[1723532654410,7.6514682,146.83,146.79,0.12549]
[1723532654729,7.6514682,146.83,146.79,0.25098]
[1723532654902,6.811,146.82,146.79,0.25098]
[1723532655623,7.6515682,146.83,146.79,0.25098]
[1723532657829,8.46726005,146.82,146.79,0.25098]
[1723532658029,6.811,146.82,146.79,0.25098]
[1723532658211,6.8115,146.81,146.79,0.12549]
[1723532658414,6.8116,146.81,146.79,0.12549]
[1723532658732,0.8408682,146.83,146.79,0.12549]
[1723532659104,0.8408682,146.83,146.78,0.25098]
[1723532659421,6.8111,146.82,146.78,0.25098]
[1723532660498,7.6515682,146.83,146.78,0.25098]
[1723532660705,6.811,146.82,146.78,0.25098]
[1723532662031,7.6514682,146.83,146.78,0.25098]
[1723532668030,8.46736005,146.82,146.78,0.25098]
[1723532668236,6.8111,146.82,146.78,0.25098]
[1723532669534,8.46736005,146.82,146.78,0.25098]
[1723532669828,32.88626005,146.81,146.72,6.0539]
[1723532670134,6.8125,146.79,146.72,6.0539]
[1723532671848,31.23,146.81,146.72,6.0539]
[1723532672138,0.8408682,146.83,146.72,6.0539]
[1723532672139,6.8111,146.82,146.72,6.0539]
[1723532672434,26.8115,146.81,146.74,0.12549]
[1723532673348,6.812,146.8,146.74,0.12549]
[1723532673926,8.46826005,146.8,146.74,0.12549]
[1723532674224,6.812,146.8,146.74,0.12549]
[1723532674425,1.65626005,146.79,146.74,0.12549]
[1723532675242,6.812,146.8,146.74,0.12549]
[1723532675537,20.0,146.81,146.74,0.12549]
[1723532675738,20.0,146.82,146.74,1.48805146]
[1723532676041,20.0,146.82,146.76,0.12549]
[1723532676239,20.0,146.82,146.76,0.25098]
[1723532676420,20.0,146.82,146.77,0.12549]
[1723532677241,7.6517682,146.83,146.77,0.12549]
[1723532677446,7.6517682,146.83,146.77,0.37647]
[1723532677620,7.6517682,146.83,146.77,0.12549]
[1723532677621,6.8111,146.82,146.77,0.12549]
[1723532677822,1.65626005,146.81,146.77,0.12549]
[1723532678018,6.8126,146.79,146.77,0.12549]
[1723532678415,31.23,146.81,146.77,0.12549]
[1723532678624,6.812,146.8,146.77,0.12549]
[1723532681243,8.46886005,146.79,146.77,0.12549]
[1723532681438,8.46886005,146.79,146.73,45.25098]
[1723532681640,8.46886005,146.79,146.74,0.12549]
[1723532681954,6.8126,146.79,146.74,0.12549]
[1723532683842,8.46926005,146.78,146.74,0.12549]
[1723532684520,31.23,146.81,146.74,0.25098]
[1723532684719,6.8124,146.79,146.75,0.25098]
[1723532684950,6.8124,146.79,146.76,0.12549]
[1723532686221,26.812,146.8,146.76,0.12549]
[1723532688952,6.8129,146.78,146.76,0.12549]
[1723532689245,6.813,146.78,146.75,0.12549]
[1723532689550,6.813,146.78,146.74,0.25098]
[1723532689849,6.8135,146.77,146.74,0.25098]
[1723532690054,6.8135,146.77,146.74,0.12549]
[1723532690434,6.813,146.78,146.74,0.12549]
[1723532690630,6.813,146.78,146.74,0.25098]
[1723532691055,8.46976005,146.77,146.74,0.25098]
[1723532691360,6.8129,146.78,146.74,0.12549]
[1723532691554,1.65626005,146.77,146.74,0.25098]
[1723532692750,1.65626005,146.76,146.72,6.0539]
[1723532692951,31.23,146.75,146.68,6.5163]
[1723532693155,6.8166,146.7,146.67,16.1837]
[1723532693454,1.65626005,146.69,146.64,6.5163]
[1723532694045,8.47346005,146.69,146.64,6.5163]
[1723532694258,6.8175,146.68,146.64,6.5163]
[1723532694456,1.65626005,146.67,146.64,6.5163]
[1723532694657,8.47436005,146.67,146.64,6.5163]
[1723532694875,6.8176,146.68,146.6,22.3496]
[1723532695151,1.65626005,146.67,146.6,22.3496]
[1723532695660,6.8176,146.68,146.6,22.3496]
[1723532696039,31.23,146.69,146.58,7.08414816]
[1723532696348,31.23,146.67,146.56,6.5233]
[1723532696767,38.0481,146.67,146.56,6.5233]
[1723532697258,6.8181,146.67,146.56,6.5233]
[1723532697629,20.0,146.68,146.57,45.0]
[1723532697835,20.0,146.68,146.59,0.12549]
[1723532698740,31.23,146.67,146.59,0.12549]
[1723532698950,20.0,146.66,146.59,0.12549]
[1723532699343,31.23,146.69,146.59,0.12549]
[1723532699532,20.0,146.68,146.59,0.12549]
[1723532699731,26.8179,146.68,146.59,0.12549]
[1723532700557,8.47436005,146.67,146.59,0.12549]
[1723532701133,6.8185,146.66,146.59,0.12549]
[1723532701349,1.65626005,146.65,146.59,0.12549]
[1723532701542,8.47566005,146.64,146.59,0.12549]
[1723532701739,1.65626005,146.63,146.56,6.5233]
[1723532702563,1.65626005,146.62,146.56,6.5233]
[1723532702854,6.8209,146.61,146.56,6.5233]
[1723532703060,8.47666005,146.62,146.56,6.5233]
[1723532703232,6.8208,146.61,146.56,6.5233]
[1723532704761,8.47666005,146.62,146.57,45.37647]
[1723532705343,6.8208,146.61,146.57,45.37647]
[1723532705549,1.65626005,146.6,146.57,45.37647]
[1723532706266,8.47766005,146.6,146.57,45.12549]
[1723532706464,8.47796005,146.59,146.53,6.1214]
[1723532707768,6.8223,146.58,146.53,6.1214]
[1723532707938,8.47806005,146.59,146.53,6.1214]
[1723532708337,31.23,146.61,146.54,0.25098]
[1723532708659,6.8202,146.63,146.56,0.12549]
[1723532708948,26.8204,146.62,146.56,0.25098]
[1723532709152,6.8209,146.61,146.57,0.12549]
[1723532709340,6.8209,146.61,146.57,0.25098]
[1723532709863,6.8204,146.62,146.58,0.12549]
[1723532710235,1.65626005,146.61,146.58,0.12549]
[1723532710442,8.47706005,146.61,146.58,0.12549]
[1723532710661,1.65626005,146.6,146.58,0.12549]
[1723532710862,6.8208,146.61,146.58,0.12549]
[1723532711173,1.65626005,146.6,146.58,0.12549]
[1723532711366,1.65626005,146.6,146.57,0.12549]
[1723532712246,8.47756005,146.6,146.57,0.12549]
[1723532712453,1.65626005,146.59,146.57,0.12549]
[1723532712862,8.47796005,146.59,146.57,0.12549]
[1723532713158,6.8213,146.6,146.57,0.12549]
[1723532713470,31.23,146.63,146.57,0.12549]
[1723532713639,20.0,146.62,146.57,0.12549]
[1723532714968,6.8214,146.6,146.57,0.12549]
[1723532715145,1.65626005,146.59,146.57,0.12549]
[1723532716181,20.0,146.62,146.57,0.12549]
[1723532716352,20.0,146.62,146.57,0.37647]
[1723532716741,26.8204,146.62,146.57,0.37647]
[1723532719266,6.8208,146.61,146.57,0.37647]
[1723532719472,26.8204,146.62,146.57,0.37647]
[1723532721070,23.5428,146.68,146.58,0.12549]
[1723532721274,12.53,146.66,146.58,46.74054499]
[1723532721569,12.53,146.66,146.59,0.12549]
[1723532721749,24.59839998,146.69,146.6,0.12549]
[1723532721944,6.8176,146.68,146.6,46.74037935]
[1723532722167,12.53,146.69,146.62,0.12549]
[1723532722168,6.8172,146.69,146.62,0.12549]
[1723532722464,6.8172,146.69,146.62,45.37647]
[1723532722646,6.8172,146.69,146.64,0.12549]
[1723532722850,6.8172,146.69,146.64,45.25098]
[1723532723057,12.53,146.72,146.65,0.25098]
[1723532723250,6.817,146.7,146.66,0.12549]
[1723532723844,6.817,146.7,146.66,0.25098]
[1723532724042,6.817,146.7,146.67,0.12549]
[1723532724256,6.817,146.7,146.66,0.12549]
[1723532724670,6.817,146.7,146.66,0.25098]
[1723532724982,6.817,146.7,146.67,0.12549]
[1723532725185,6.8162,146.71,146.67,0.25098]
[1723532725484,6.8162,146.71,146.68,0.12549]
[1723532726381,6.8157,146.72,146.68,0.25098]
[1723532726684,6.8157,146.72,146.69,0.12549]
[1723532729091,6.8162,146.71,146.69,0.12549]
[1723532731084,6.8157,146.72,146.69,0.12549]
[1723532732983,6.8162,146.71,146.69,0.12549]
[1723532735367,6.8158,146.72,146.69,0.12549]
[1723532735894,1.65626005,146.74,146.69,0.12549]
[1723532736070,21.65626005,146.74,146.69,0.12549]
[1723532736270,6.8157,146.72,146.69,0.12549]
[1723532736486,31.28,146.77,146.69,0.25098]
[1723532736671,6.8144,146.75,146.7,0.25098]
[1723532736876,6.8144,146.75,146.71,0.12549]
[1723532737790,6.8149,146.74,146.71,45.12549]
[1723532738094,6.8148,146.74,146.71,45.12549]
[1723532739588,2.730779,146.78,146.71,45.12549]
[1723532739769,6.8137,146.77,146.72,0.25098]
[1723532739965,6.8138,146.76,146.73,0.12549]
[1723532740193,6.8147,146.74,146.73,0.12549]
[1723532740783,6.8143,146.75,146.72,0.12549]
[1723532740990,20.0,146.78,146.72,0.37647]
[1723532741368,20.0,146.78,146.73,0.12549]
[1723532741569,6.814,146.76,146.73,0.12549]
[1723532742297,17.028,146.82,146.73,0.12549]
[1723532742298,31.28,146.81,146.73,0.37647]
[1723532742482,31.28,146.81,146.74,0.25098]
[1723532742683,6.8128,146.79,146.75,0.25098]
[1723532742885,6.8128,146.79,146.76,0.12549]
[1723532743796,6.8129,146.78,146.76,0.12549]
[1723532745403,6.8124,146.79,146.76,0.12549]
[1723532746274,2.730029,146.81,146.76,0.12549]
[1723532746469,7.6514682,146.83,146.76,1.61353798]
[1723532746673,6.8111,146.82,146.77,0.37647]
[1723532746894,6.8111,146.82,146.78,0.25098]
[1723532747094,6.8111,146.82,146.79,0.25098]
[1723532747297,6.8111,146.82,146.8,0.12549]
[1723532749498,0.8408682,146.83,146.8,0.12549]
[1723532749699,7.6514682,146.83,146.8,0.25098]
[1723532750096,7.6514682,146.83,146.81,0.12549]
[1723532750615,0.8408682,146.83,146.81,0.12549]
[1723532750904,0.8408682,146.83,146.81,0.25098]
[1723532751294,0.8408682,146.83,146.82,0.12549]
[1723532751486,7.6513682,146.83,146.81,0.12549]
[1723532751807,0.8408682,146.83,146.81,0.12549]
[1723532752214,0.8408682,146.83,146.81,0.25098]
[1723532752389,0.8408682,146.83,146.82,0.12549]
[1723532753510,9.30762825,146.83,146.82,0.12549]
[1723532753804,6.8124,146.79,146.74,6.1036]
[1723532753989,6.812,146.8,146.74,6.1036]
[1723532754307,32.0708682,146.83,146.74,6.1036]
[1723532754308,6.8114,146.82,146.74,6.1036]
[1723532754480,32.0708682,146.83,146.74,6.1036]
[1723532754902,1.65626005,146.82,146.74,6.1036]
[1723532755391,6.8115,146.81,146.74,6.1036]
[1723532755785,6.8111,146.82,146.74,6.1036]
[1723532755986,1.65626005,146.81,146.74,6.1036]
[1723532756231,0.8408682,146.83,146.77,0.25098]
[1723532756388,0.8408682,146.83,146.78,0.12549]
[1723532758691,0.8408682,146.83,146.8,0.12549]
[1723532758891,0.8408682,146.83,146.8,45.50196]
[1723532761006,0.8408682,146.83,146.81,1.36203567]
[1723532761207,0.8408682,146.83,146.82,0.50196]
[1723532765704,0.8408682,146.83,146.82,0.37647]
[1723532766110,0.8408682,146.83,146.79,6.0083]
[1723532766429,1.65626005,146.82,146.76,15.8228]
[1723532766628,6.8128,146.79,146.72,16.1093]
[1723532766807,8.46926005,146.78,146.71,6.1457]
[1723532767003,31.23,146.79,146.67,22.255]
[1723532767222,31.23,146.77,146.67,22.255]
[1723532767434,8.47046005,146.76,146.67,22.255]
[1723532767751,6.8142,146.76,146.67,22.255]
[1723532768235,31.23,146.77,146.67,22.255]
[1723532768236,8.47056005,146.75,146.67,22.255]
[1723532768534,6.8143,146.75,146.67,22.255]
[1723532768708,1.65626005,146.74,146.67,22.255]
[1723532768906,31.23,146.75,146.67,22.255]
[1723532769228,31.23,146.79,146.67,22.255]
[1723532769539,20.0,146.78,146.67,22.255]
[1723532770042,20.0,146.78,146.69,0.12549]
[1723532770209,20.0,146.8,146.69,45.50196]
[1723532770408,20.0,146.8,146.71,0.12549]
[1723532770609,20.0,146.8,146.71,0.50196]
[1723532771019,26.8122,146.8,146.71,0.50196]
[1723532772237,20.0,146.8,146.71,0.50196]
[1723532772444,20.0,146.8,146.72,15.0883]
[1723532772608,20.0,146.8,146.73,45.50196]
[1723532773327,6.8116,146.81,146.73,45.50196]
[1723532774950,6.811,146.82,146.75,0.12549]
[1723532775124,7.6514682,146.83,146.75,45.50196]
[1723532775448,0.8408682,146.83,146.77,0.12549]
[1723532775616,7.6514682,146.83,146.78,0.12549]
[1723532775814,7.6514682,146.83,146.78,0.50196]
[1723532776015,7.6515682,146.83,146.78,0.50196]
[1723532776325,0.8408682,146.83,146.78,0.50196]
[1723532776514,1.65626005,146.82,146.78,0.12549]
[1723532776839,0.8408682,146.83,146.78,0.12549]
[1723532777340,0.8408682,146.83,146.78,0.37647]
[1723532777516,8.46726005,146.82,146.78,0.37647]
[1723532778937,8.46726005,146.82,146.78,0.12549]
[1723532779141,6.8116,146.81,146.78,0.12549]
[1723532779345,6.811,146.82,146.78,0.12549]
[1723532779922,1.65626005,146.81,146.78,0.12549]
[1723532780149,7.6514682,146.83,146.78,0.37647]
[1723532780448,7.6514682,146.83,146.79,0.12549]
[1723532780652,1.65626005,146.82,146.79,0.12549]
[1723532780956,1.65626005,146.82,146.79,0.25098]
[1723532781321,7.6514682,146.83,146.79,0.25098]
[1723532781737,6.8111,146.82,146.79,0.12549]
[1723532781930,8.46816005,146.81,146.79,0.12549]
[1723532782121,6.8119,146.8,146.79,0.12549]
[1723532782325,1.65626005,146.81,146.75,45.0]
[1723532782326,6.8125,146.79,146.75,45.0]
[1723532783143,6.8125,146.79,146.74,6.4335]
[1723532783459,6.8129,146.78,146.74,6.4335]
[1723532783755,6.8134,146.77,146.72,15.0883]
[1723532783956,1.65626005,146.76,146.72,15.0883]
[1723532784126,31.23,146.79,146.72,15.0883]
[1723532784849,31.23,146.79,146.73,45.12549]
[1723532785050,31.23,146.79,146.73,45.25098]
[1723532785258,31.23,146.81,146.74,0.25098]
[1723532785545,31.23,146.81,146.75,0.25098]
[1723532785546,20.0,146.8,146.75,0.25098]
[1723532785749,6.812,146.8,146.75,0.25098]
[1723532786352,32.88626005,146.81,146.75,0.12549]
[1723532786528,6.8129,146.78,146.75,0.12549]
[1723532786855,6.8129,146.78,146.7,6.0318]
[1723532787151,38.0425,146.79,146.7,6.0318]
[1723532787937,6.8121,146.8,146.7,6.0318]
[1723532788146,6.8121,146.8,146.71,0.12549]
[1723532788367,38.0415,146.81,146.71,45.50196]
[1723532788651,6.812,146.8,146.71,45.50196]
[1723532788855,6.8124,146.79,146.71,45.50196]
[1723532789146,1.65626005,146.79,146.71,45.50196]
[1723532789353,8.46876005,146.79,146.71,45.50196]
[1723532789734,6.8125,146.79,146.71,45.50196]
[1723532790053,6.812,146.8,146.71,45.50196]
[1723532790834,0.8408682,146.83,146.73,0.12549]
[1723532790835,38.8818682,146.83,146.73,0.12549]
[1723532791041,32.0708682,146.83,146.73,45.37647]
[1723532791243,32.0708682,146.83,146.74,0.12549]
[1723532791447,32.0708682,146.83,146.75,0.12549]
[1723532791960,6.8111,146.82,146.75,0.12549]
[1723532792340,6.8121,146.8,146.75,0.12549]
[1723532792544,1.65626005,146.79,146.75,0.12549]
[1723532793544,6.8116,146.81,146.75,0.12549]
[1723532794248,1.65626005,146.8,146.75,0.12549]
[1723532794558,31.23,146.81,146.75,0.12549]
[1723532794757,8.46866005,146.79,146.75,0.12549]
[1723532794941,6.812,146.8,146.75,0.12549]
[1723532795538,6.812,146.8,146.75,0.37647]
[1723532795737,6.812,146.8,146.76,0.12549]
[1723532796068,6.8112,146.82,146.76,0.37647]
[1723532796364,6.8115,146.81,146.76,0.37647]
[1723532796565,32.0708682,146.83,146.76,0.37647]
[1723532796769,20.0,146.82,146.76,0.37647]
[1723532797372,7.6514682,146.83,146.77,0.12549]
[1723532797554,0.8408682,146.83,146.79,0.12549]
[1723532797736,0.8408682,146.83,146.79,45.37647]
[1723532797941,0.8408682,146.83,146.8,0.12549]
[1723532798241,0.8408682,146.83,146.8,0.37647]
[1723532798844,0.8408682,146.83,146.81,0.12549]
[1723532799052,0.8408682,146.83,146.81,0.37647]
[1723532799249,0.8408682,146.83,146.82,0.12549]
[1723532799461,0.8408682,146.83,146.82,0.50196]
[1723532800665,0.8408682,146.83,146.82,0.37647]
[1723532801376,0.8408682,146.83,146.82,0.25098]
[1723532801579,6.811,146.82,146.78,16.4737]
[1723532801747,1.65626005,146.81,146.78,16.4737]
[1723532802171,7.6515682,146.83,146.78,16.4737]
[1723532802475,0.8408682,146.83,146.78,16.4737]
[1723532802879,0.8408682,146.83,146.79,0.25098]
[1723532803063,0.8408682,146.83,146.8,0.37647]
[1723532803270,0.8408682,146.83,146.81,0.12549]
[1723532803752,0.8408682,146.83,146.8,0.12549]
[1723532803753,1.65626005,146.82,146.8,0.12549]
[1723532803949,0.8408682,146.83,146.8,0.12549]
[1723532804149,7.6514682,146.83,146.8,0.12549]
[1723532804482,0.8408682,146.83,146.8,0.12549]
[1723532804769,7.6514682,146.83,146.8,0.12549]
[1723532807778,0.8408682,146.83,146.8,0.37647]
[1723532809076,0.8408682,146.83,146.8,0.25098]
[1723532809274,7.6514682,146.83,146.8,0.12549]
[1723532809469,6.811,146.82,146.8,0.12549]
[1723532809656,6.8115,146.81,146.8,0.12549]
[1723532809860,6.8111,146.82,146.8,0.12549]
[1723532810057,32.0708682,146.83,146.74,16.282]
[1723532810058,31.23,146.81,146.74,16.282]
[1723532810385,1.65626005,146.8,146.74,16.282]
[1723532810551,8.46876005,146.79,146.74,16.282]
[1723532810876,6.813,146.78,146.72,6.4481]
[1723532811085,1.65626005,146.77,146.72,6.4481]
[1723532811387,8.47016005,146.76,146.72,6.4481]
[1723532811683,6.8148,146.74,146.68,6.4223]